[Event "Late-Titled-Tuesday-Blitz-March-05-2024"]
[Site "Chess.com"]
[Date "2024.03.05"]
[Round "9"]
[White "madstalk3rs"]
[Black "kagg1125"]
[Result "1-0"]
[WhiteElo "2647"]
[BlackElo "2530"]
[TimeControl "180+1"]
[EndTime "15:34:10 PST"]
[Termination "madstalk3rs won by resignation"]

1. e4 {[%clk 0:03:00.4]} 1... e5 {[%clk 0:02:54.9]} 2. Nf3 {[%clk 0:03:00.4]}
2... Nc6 {[%clk 0:02:54.8]} 3. Nc3 {[%clk 0:03:01.1]} 3... Nf6 {[%clk
0:02:53.3]} 4. d4 {[%clk 0:03:01.2]} 4... exd4 {[%clk 0:02:54.2]} 5. Nxd4 {[%clk
0:03:02.1]} 5... Bb4 {[%clk 0:02:54.4]} 6. Nxc6 {[%clk 0:03:02.8]} 6... bxc6
{[%clk 0:02:55.1]} 7. Bd3 {[%clk 0:03:03.7]} 7... d5 {[%clk 0:02:55.4]} 8. exd5
{[%clk 0:03:04.6]} 8... O-O {[%clk 0:02:55.8]} 9. O-O {[%clk 0:03:05.3]} 9...
Bg4 {[%clk 0:02:55.5]} 10. f3 {[%clk 0:03:06]} 10... Bh5 {[%clk 0:02:56.2]} 11.
Bg5 {[%clk 0:03:06.7]} 11... Qxd5 {[%clk 0:02:55.5]} 12. Nxd5 {[%clk 0:03:06.4]}
1-0

[Event "Late-Titled-Tuesday-Blitz-March-05-2024"]
[Site "Chess.com"]
[Date "2024.03.05"]
[Round "9"]
[White "ZachHKL"]
[Black "SmirnovTimofey2000"]
[Result "1-0"]
[WhiteElo "2147"]
[BlackElo "1952"]
[TimeControl "180+1"]
[EndTime "15:36:13 PST"]
[Termination "ZachHKL won by resignation"]

1. e4 {[%clk 0:03:00.9]} 1... e5 {[%clk 0:02:56.9]} 2. Nf3 {[%clk 0:03:01]} 2...
Nf6 {[%clk 0:02:56.7]} 3. Nc3 {[%clk 0:02:58.9]} 3... Bb4 {[%clk 0:02:55.4]} 4.
Nxe5 {[%clk 0:02:57.9]} 4... O-O {[%clk 0:02:53.5]} 5. Bd3 {[%clk 0:02:52.5]}
5... Bxc3 {[%clk 0:02:36.1]} 6. dxc3 {[%clk 0:02:51.3]} 6... Nxe4 {[%clk
0:02:35.9]} 7. Bxe4 {[%clk 0:02:46]} 7... Re8 {[%clk 0:02:35.7]} 8. Bxh7+ {[%clk
0:02:10.8]} 8... Kxh7 {[%clk 0:02:31]} 9. Qh5+ {[%clk 0:02:09.7]} 9... Kg8
{[%clk 0:02:28.9]} 10. Qxf7+ {[%clk 0:02:09.3]} 10... Kh8 {[%clk 0:02:25.2]} 11.
Qh5+ {[%clk 0:02:02.6]} 11... Kg8 {[%clk 0:02:24.3]} 12. O-O {[%clk 0:02:02.1]}
12... Qf6 {[%clk 0:01:58.5]} 13. Qxe8+ {[%clk 0:02:00.1]} 1-0

[Event "Late-Titled-Tuesday-Blitz-March-05-2024"]
[Site "Chess.com"]
[Date "2024.03.05"]
[Round "9"]
[White "adricalderon8"]
[Black "carloseduar100"]
[Result "1-0"]
[WhiteElo "2526"]
[BlackElo "2364"]
[TimeControl "180+1"]
[EndTime "15:36:17 PST"]
[Termination "adricalderon8 won by resignation"]

1. Nf3 {[%clk 0:03:00.9]} 1... Nf6 {[%clk 0:02:59.8]} 2. c4 {[%clk 0:03:00.3]}
2... g6 {[%clk 0:03:00.7]} 3. b3 {[%clk 0:03:00.1]} 3... Bg7 {[%clk 0:03:01.6]}
4. Bb2 {[%clk 0:03:00.9]} 4... O-O {[%clk 0:03:02.4]} 5. e3 {[%clk 0:03:01]}
5... d5 {[%clk 0:03:02.5]} 6. Be2 {[%clk 0:03:00.1]} 6... dxc4 {[%clk
0:03:02.4]} 7. bxc4 {[%clk 0:03:00.1]} 7... c5 {[%clk 0:03:03.3]} 8. O-O {[%clk
0:02:58.7]} 8... Nc6 {[%clk 0:03:04.2]} 9. d3 {[%clk 0:02:54.9]} 9... b6 {[%clk
0:03:04.5]} 10. Nc3 {[%clk 0:02:54.1]} 10... Bb7 {[%clk 0:03:04.7]} 11. Rb1
{[%clk 0:02:54.3]} 11... e6 {[%clk 0:03:04.3]} 12. Qc1 {[%clk 0:02:43.5]} 12...
Ng4 {[%clk 0:03:04]} 13. h3 {[%clk 0:02:42.5]} 13... Nge5 {[%clk 0:03:04]} 14.
Nxe5 {[%clk 0:02:42.7]} 14... Nxe5 {[%clk 0:03:04.1]} 15. Rd1 {[%clk 0:02:43.4]}
15... Qh4 {[%clk 0:03:03.4]} 16. a4 {[%clk 0:02:25.4]} 16... Rad8 {[%clk
0:03:01.8]} 17. a5 {[%clk 0:02:25.2]} 17... h5 {[%clk 0:02:27]} 18. axb6 {[%clk
0:02:24.2]} 18... axb6 {[%clk 0:02:26.8]} 19. Ba1 {[%clk 0:02:24.5]} 19... Qg5
{[%clk 0:02:25.7]} 20. e4 {[%clk 0:02:24.4]} 20... Rd6 {[%clk 0:02:02.5]} 21.
Qxg5 {[%clk 0:02:23.6]} 1-0

[Event "Late-Titled-Tuesday-Blitz-March-05-2024"]
[Site "Chess.com"]
[Date "2024.03.05"]
[Round "9"]
[White "cristiano78"]
[Black "DonBroca"]
[Result "1-0"]
[WhiteElo "2288"]
[BlackElo "2153"]
[TimeControl "180+1"]
[EndTime "15:37:37 PST"]
[Termination "cristiano78 won by resignation"]

1. d4 {[%clk 0:02:58.8]} 1... g6 {[%clk 0:02:56.1]} 2. c4 {[%clk 0:02:58.9]}
2... Bg7 {[%clk 0:02:55.7]} 3. Nc3 {[%clk 0:02:59.3]} 3... Nf6 {[%clk
0:02:55.2]} 4. e4 {[%clk 0:02:59.4]} 4... d6 {[%clk 0:02:55.4]} 5. Nf3 {[%clk
0:02:59.2]} 5... O-O {[%clk 0:02:56.3]} 6. Be2 {[%clk 0:02:59.3]} 6... e5 {[%clk
0:02:56]} 7. O-O {[%clk 0:02:59.1]} 7... Nc6 {[%clk 0:02:49.3]} 8. d5 {[%clk
0:02:59]} 8... Ne7 {[%clk 0:02:49.3]} 9. Ne1 {[%clk 0:02:59.9]} 9... Ne8 {[%clk
0:02:45.4]} 10. Be3 {[%clk 0:03:00]} 10... f5 {[%clk 0:02:45.5]} 11. f3 {[%clk
0:03:00.6]} 11... f4 {[%clk 0:02:45.8]} 12. Bf2 {[%clk 0:03:00.6]} 12... g5
{[%clk 0:02:46.2]} 13. c5 {[%clk 0:03:01.1]} 13... Rf6 {[%clk 0:02:42.5]} 14.
Nd3 {[%clk 0:03:00.1]} 14... Ng6 {[%clk 0:02:42]} 15. a4 {[%clk 0:02:59.3]}
15... Bf8 {[%clk 0:02:41.6]} 16. cxd6 {[%clk 0:02:54.8]} 16... cxd6 {[%clk
0:02:41.3]} 17. Nb5 {[%clk 0:02:53.1]} 17... a6 {[%clk 0:02:39.4]} 18. Na3
{[%clk 0:02:52.4]} 18... Bd7 {[%clk 0:02:38.1]} 19. Nc4 {[%clk 0:02:52.7]} 19...
h5 {[%clk 0:02:29.2]} 20. Qb3 {[%clk 0:02:51.2]} 20... Rb8 {[%clk 0:02:28.7]}
21. Bb6 {[%clk 0:02:44.9]} 21... Qe7 {[%clk 0:02:25.5]} 22. Rfc1 {[%clk
0:02:43.6]} 22... g4 {[%clk 0:02:21.3]} 23. Ne1 {[%clk 0:02:42.9]} 23... Ng7
{[%clk 0:02:17.7]} 24. Bc7 {[%clk 0:02:38.4]} 24... Rd8 {[%clk 0:02:08.3]} 25.
Bxd8 {[%clk 0:02:35.9]} 25... Qxd8 {[%clk 0:02:05.2]} 26. Qxb7 {[%clk
0:02:35.7]} 26... Bc8 {[%clk 0:02:05.5]} 27. Qb6 {[%clk 0:02:34.8]} 27... Qe8
{[%clk 0:02:03.7]} 28. Qb8 {[%clk 0:02:31.5]} 28... Nh4 {[%clk 0:01:54.4]} 29.
Nxd6 {[%clk 0:02:21.3]} 29... Rxd6 {[%clk 0:01:49.9]} 30. Rxc8 {[%clk
0:02:20.3]} 30... Qf7 {[%clk 0:01:50.5]} 31. fxg4 {[%clk 0:02:16]} 31... hxg4
{[%clk 0:01:49.6]} 32. Bxg4 {[%clk 0:02:16.1]} 32... Rg6 {[%clk 0:01:49.9]} 33.
Bf3 {[%clk 0:02:02.6]} 33... Rxg2+ {[%clk 0:01:45.6]} 34. Bxg2 {[%clk
0:01:56.2]} 34... f3 {[%clk 0:01:45.1]} 35. Nxf3 {[%clk 0:01:56.1]} 35... Nxg2
{[%clk 0:01:44.5]} 36. Rxf8+ {[%clk 0:01:51.3]} 36... Qxf8 {[%clk 0:01:44.1]}
37. Qxf8+ {[%clk 0:01:51]} 37... Kxf8 {[%clk 0:01:45]} 38. Kxg2 {[%clk
0:01:51.4]} 1-0

[Event "Late-Titled-Tuesday-Blitz-March-05-2024"]
[Site "Chess.com"]
[Date "2024.03.05"]
[Round "9"]
[White "titomagno_64"]
[Black "DonJuan_34"]
[Result "0-1"]
[WhiteElo "2340"]
[BlackElo "2486"]
[TimeControl "180+1"]
[EndTime "15:38:05 PST"]
[Termination "DonJuan_34 won by resignation"]

1. d4 {[%clk 0:02:45.9]} 1... Nf6 {[%clk 0:02:59.7]} 2. c4 {[%clk 0:02:46.2]}
2... g6 {[%clk 0:02:59.6]} 3. Nc3 {[%clk 0:02:45.7]} 3... Bg7 {[%clk 0:03:00.1]}
4. e4 {[%clk 0:02:46.1]} 4... O-O {[%clk 0:03:00.6]} 5. Nf3 {[%clk 0:02:46.7]}
5... d6 {[%clk 0:03:01.1]} 6. Be2 {[%clk 0:02:47.4]} 6... e5 {[%clk 0:03:01.3]}
7. O-O {[%clk 0:02:48]} 7... Nc6 {[%clk 0:03:00.6]} 8. d5 {[%clk 0:02:48.4]}
8... Ne7 {[%clk 0:03:01.1]} 9. b4 {[%clk 0:02:48.1]} 9... Ne8 {[%clk 0:02:59.7]}
10. c5 {[%clk 0:02:48.2]} 10... f5 {[%clk 0:02:59.4]} 11. Nd2 {[%clk 0:02:46.5]}
11... Nf6 {[%clk 0:02:57.4]} 12. f3 {[%clk 0:02:43.8]} 12... f4 {[%clk
0:02:55.6]} 13. a4 {[%clk 0:02:39.3]} 13... g5 {[%clk 0:02:55.7]} 14. Nc4 {[%clk
0:02:39.5]} 14... Rf7 {[%clk 0:02:51.3]} 15. Ba3 {[%clk 0:02:39.2]} 15... Bf8
{[%clk 0:02:50.3]} 16. b5 {[%clk 0:02:29.7]} 16... Ng6 {[%clk 0:02:48.9]} 17. a5
{[%clk 0:02:23.6]} 17... dxc5 {[%clk 0:02:28.8]} 18. b6 {[%clk 0:02:23.5]} 18...
cxb6 {[%clk 0:02:15.7]} 19. axb6 {[%clk 0:02:20.2]} 19... a6 {[%clk 0:02:08.1]}
20. Na4 {[%clk 0:02:13.6]} 20... g4 {[%clk 0:02:06.5]} 21. Bxc5 {[%clk
0:02:06.9]} 21... g3 {[%clk 0:02:02.2]} 22. Bxf8 {[%clk 0:02:01.2]} 22... gxh2+
{[%clk 0:02:00.6]} 23. Kf2 {[%clk 0:01:08.1]} 23... Nxe4+ {[%clk 0:01:50.1]} 24.
Ke1 {[%clk 0:00:47.5]} 24... Qh4+ {[%clk 0:01:47.6]} 25. g3 {[%clk 0:00:48.1]}
25... Qxg3+ {[%clk 0:01:47.3]} 0-1

[Event "Late-Titled-Tuesday-Blitz-March-05-2024"]
[Site "Chess.com"]
[Date "2024.03.05"]
[Round "9"]
[White "Beca95"]
[Black "Kosak12"]
[Result "1-0"]
[WhiteElo "2973"]
[BlackElo "2803"]
[TimeControl "180+1"]
[EndTime "15:38:13 PST"]
[Termination "Beca95 won by resignation"]

1. d4 {[%clk 0:02:59.6]} 1... Nf6 {[%clk 0:02:59.3]} 2. c4 {[%clk 0:02:55.7]}
2... e6 {[%clk 0:02:59.1]} 3. Nc3 {[%clk 0:02:55.9]} 3... Bb4 {[%clk 0:02:57.8]}
4. Qc2 {[%clk 0:02:56]} 4... d5 {[%clk 0:02:56.9]} 5. cxd5 {[%clk 0:02:55.6]}
5... exd5 {[%clk 0:02:57.1]} 6. Bg5 {[%clk 0:02:55.3]} 6... h6 {[%clk 0:02:57]}
7. Bh4 {[%clk 0:02:55.4]} 7... Nc6 {[%clk 0:02:54.2]} 8. e3 {[%clk 0:02:55.5]}
8... g5 {[%clk 0:02:50.8]} 9. Bg3 {[%clk 0:02:55.4]} 9... Ne4 {[%clk 0:02:49.5]}
10. Bd3 {[%clk 0:02:47.4]} 10... Nxg3 {[%clk 0:02:44]} 11. hxg3 {[%clk 0:02:47]}
11... Be6 {[%clk 0:02:39.9]} 12. Ne2 {[%clk 0:02:46.3]} 12... Qe7 {[%clk
0:02:37.2]} 13. a3 {[%clk 0:02:46.1]} 13... Bd6 {[%clk 0:02:36.8]} 14. Bb5
{[%clk 0:02:39.2]} 14... h5 {[%clk 0:02:10.4]} 15. e4 {[%clk 0:02:33]} 15... Bd7
{[%clk 0:01:24.2]} 16. Nxd5 {[%clk 0:02:30.2]} 16... Qd8 {[%clk 0:01:19.4]} 17.
e5 {[%clk 0:02:26.8]} 17... Be7 {[%clk 0:01:19.7]} 18. O-O-O {[%clk 0:02:20.9]}
18... a6 {[%clk 0:01:19.8]} 19. Bc4 {[%clk 0:02:20.6]} 19... Be6 {[%clk
0:01:08.6]} 20. Ne3 {[%clk 0:02:20.2]} 20... Bxc4 {[%clk 0:01:06.9]} 21. Qxc4
{[%clk 0:02:19.6]} 21... Qd7 {[%clk 0:01:07.1]} 22. f4 {[%clk 0:02:19.1]} 22...
gxf4 {[%clk 0:01:04]} 23. gxf4 {[%clk 0:02:18.9]} 23... O-O-O {[%clk 0:00:58.9]}
24. d5 {[%clk 0:02:18.7]} 24... Na5 {[%clk 0:00:59.2]} 25. Qc3 {[%clk
0:02:15.6]} 25... Qb5 {[%clk 0:00:59.4]} 26. Nd4 {[%clk 0:02:15.5]} 26... Qb6
{[%clk 0:00:57.4]} 27. b4 {[%clk 0:02:13.9]} 27... Nc6 {[%clk 0:00:32.4]} 28.
dxc6 {[%clk 0:02:12.5]} 28... Rhg8 {[%clk 0:00:33.1]} 29. Ndf5 {[%clk
0:02:08.6]} 1-0

[Event "Late-Titled-Tuesday-Blitz-March-05-2024"]
[Site "Chess.com"]
[Date "2024.03.05"]
[Round "9"]
[White "KNVB"]
[Black "Zavgorodniy_Sergiy"]
[Result "1-0"]
[WhiteElo "2802"]
[BlackElo "2622"]
[TimeControl "180+1"]
[EndTime "15:38:34 PST"]
[Termination "KNVB won by resignation"]

1. d4 {[%clk 0:03:00.9]} 1... d5 {[%clk 0:02:59.4]} 2. Bf4 {[%clk 0:03:01.2]}
2... Nf6 {[%clk 0:02:59.7]} 3. e3 {[%clk 0:03:01.4]} 3... e6 {[%clk 0:03:00.2]}
4. Nd2 {[%clk 0:03:01.2]} 4... c5 {[%clk 0:03:00.3]} 5. c3 {[%clk 0:03:01.4]}
5... Bd6 {[%clk 0:03:00.4]} 6. Ngf3 {[%clk 0:03:02]} 6... Qc7 {[%clk 0:03:00.3]}
7. Bxd6 {[%clk 0:03:01.5]} 7... Qxd6 {[%clk 0:03:01.2]} 8. Ne5 {[%clk
0:03:02.4]} 8... O-O {[%clk 0:03:00.8]} 9. Bd3 {[%clk 0:03:02.6]} 9... b6 {[%clk
0:03:01.2]} 10. Qe2 {[%clk 0:03:03]} 10... a5 {[%clk 0:03:00.3]} 11. O-O {[%clk
0:03:03.2]} 11... Ba6 {[%clk 0:03:00.4]} 12. Bxa6 {[%clk 0:03:03.4]} 12... Nxa6
{[%clk 0:03:01.3]} 13. f4 {[%clk 0:03:04]} 13... Nb8 {[%clk 0:03:01.3]} 14. Rf3
{[%clk 0:03:04]} 14... Nc6 {[%clk 0:03:01.2]} 15. Rh3 {[%clk 0:03:04.5]} 15...
Rab8 {[%clk 0:02:57.7]} 16. g4 {[%clk 0:03:03.2]} 16... Nd7 {[%clk 0:02:56.3]}
17. g5 {[%clk 0:03:00.8]} 17... Ndxe5 {[%clk 0:02:28.9]} 18. fxe5 {[%clk
0:02:59.8]} 18... Qe7 {[%clk 0:02:29.1]} 19. Qh5 {[%clk 0:02:50.3]} 19... h6
{[%clk 0:02:29.2]} 20. gxh6 {[%clk 0:02:39]} 20... g6 {[%clk 0:02:28.8]} 21. h7+
{[%clk 0:02:28.5]} 21... Kh8 {[%clk 0:02:28.8]} 22. Qh6 {[%clk 0:02:22.1]} 22...
b5 {[%clk 0:02:28.4]} 23. Nf3 {[%clk 0:02:16.5]} 23... b4 {[%clk 0:02:27.1]} 24.
Kh1 {[%clk 0:02:05]} 24... bxc3 {[%clk 0:02:26.7]} 25. bxc3 {[%clk 0:02:05.9]}
25... Rb2 {[%clk 0:02:24.8]} 26. Rf1 {[%clk 0:01:01.1]} 26... cxd4 {[%clk
0:02:24]} 27. exd4 {[%clk 0:00:45.6]} 27... Rxa2 {[%clk 0:02:23.7]} 28. Ng5
{[%clk 0:00:40.1]} 28... Nd8 {[%clk 0:02:23.5]} 29. Rhf3 {[%clk 0:00:40.9]}
29... a4 {[%clk 0:02:15.9]} 30. Rf6 {[%clk 0:00:35.8]} 30... a3 {[%clk
0:01:47.2]} 31. Rxg6 {[%clk 0:00:34.9]} 1-0

[Event "Late-Titled-Tuesday-Blitz-March-05-2024"]
[Site "Chess.com"]
[Date "2024.03.05"]
[Round "9"]
[White "mishanick"]
[Black "Polish_fighter3000"]
[Result "1-0"]
[WhiteElo "3092"]
[BlackElo "3120"]
[TimeControl "180+1"]
[EndTime "15:39:01 PST"]
[Termination "mishanick won on time"]

1. d4 {[%clk 0:03:00.9]} 1... Nf6 {[%clk 0:02:12.5]} 2. c4 {[%clk 0:03:01.4]}
2... e6 {[%clk 0:02:08.8]} 3. Nc3 {[%clk 0:03:01.9]} 3... Bb4 {[%clk 0:02:09.4]}
4. e3 {[%clk 0:03:02.4]} 4... c5 {[%clk 0:02:09.4]} 5. Bd3 {[%clk 0:03:02.4]}
5... d5 {[%clk 0:02:08.1]} 6. Nf3 {[%clk 0:03:01.9]} 6... dxc4 {[%clk
0:02:07.5]} 7. Bxc4 {[%clk 0:03:02.8]} 7... O-O {[%clk 0:02:07.3]} 8. O-O {[%clk
0:03:03.2]} 8... cxd4 {[%clk 0:02:05.1]} 9. exd4 {[%clk 0:03:03]} 9... h6 {[%clk
0:02:05.3]} 10. Qe2 {[%clk 0:03:02]} 10... b6 {[%clk 0:02:02.2]} 11. Rd1 {[%clk
0:03:00.5]} 11... Bb7 {[%clk 0:02:02.5]} 12. a3 {[%clk 0:03:00.8]} 12... Bxc3
{[%clk 0:01:47.7]} 13. bxc3 {[%clk 0:03:01.7]} 13... Qc8 {[%clk 0:01:48]} 14.
Bd3 {[%clk 0:03:01.9]} 14... Qxc3 {[%clk 0:01:29.8]} 15. Bxh6 {[%clk 0:03:01.4]}
15... gxh6 {[%clk 0:01:12.1]} 16. Qe3 {[%clk 0:03:01.7]} 16... Kg7 {[%clk
0:00:55.4]} 17. Ne5 {[%clk 0:03:01.7]} 17... Nbd7 {[%clk 0:00:31]} 18. Qg3+
{[%clk 0:03:01.4]} 18... Kh8 {[%clk 0:00:30.8]} 19. Qf4 {[%clk 0:03:02.1]} 19...
Kg7 {[%clk 0:00:28.9]} 20. Rac1 {[%clk 0:02:45]} 20... Qb3 {[%clk 0:00:28.3]}
21. Bc4 {[%clk 0:02:35.3]} 21... Qb2 {[%clk 0:00:22.5]} 22. Qg3+ {[%clk
0:02:24.4]} 22... Kh8 {[%clk 0:00:18.3]} 23. Qf4 {[%clk 0:02:04.8]} 23... Kg7
{[%clk 0:00:17.7]} 24. Nxd7 {[%clk 0:01:39.2]} 24... Nxd7 {[%clk 0:00:18.6]} 25.
Rd3 {[%clk 0:01:39.1]} 25... f5 {[%clk 0:00:02.2]} 26. Rb3 {[%clk 0:01:37.5]}
1-0

[Event "Late-Titled-Tuesday-Blitz-March-05-2024"]
[Site "Chess.com"]
[Date "2024.03.05"]
[Round "9"]
[White "SnekkerAndersen"]
[Black "stollenmonster"]
[Result "0-1"]
[WhiteElo "2713"]
[BlackElo "2885"]
[TimeControl "180+1"]
[EndTime "15:39:10 PST"]
[Termination "stollenmonster won by resignation"]

1. d4 {[%clk 0:02:56.2]} 1... Nf6 {[%clk 0:02:59.8]} 2. c4 {[%clk 0:02:55.9]}
2... e6 {[%clk 0:03:00.5]} 3. Nf3 {[%clk 0:02:56.2]} 3... d5 {[%clk 0:03:01.4]}
4. g3 {[%clk 0:02:55.9]} 4... Be7 {[%clk 0:03:01.3]} 5. Bg2 {[%clk 0:02:56.3]}
5... O-O {[%clk 0:03:02.1]} 6. O-O {[%clk 0:02:56.6]} 6... Ne4 {[%clk
0:03:02.8]} 7. b3 {[%clk 0:02:47.5]} 7... f5 {[%clk 0:03:02.8]} 8. Ba3 {[%clk
0:02:47]} 8... c6 {[%clk 0:03:02.7]} 9. Qc2 {[%clk 0:02:41.5]} 9... Bd7 {[%clk
0:03:02.6]} 10. Ne5 {[%clk 0:02:40.8]} 10... Be8 {[%clk 0:03:02.5]} 11. Bxe7
{[%clk 0:02:37.9]} 11... Qxe7 {[%clk 0:03:03.4]} 12. Nc3 {[%clk 0:02:36.1]}
12... Nd7 {[%clk 0:03:03.2]} 13. Nd3 {[%clk 0:02:28.8]} 13... g5 {[%clk
0:03:00]} 14. f3 {[%clk 0:02:27.4]} 14... Nxc3 {[%clk 0:03:00.1]} 15. Qxc3
{[%clk 0:02:28.3]} 15... f4 {[%clk 0:03:00.8]} 16. Rae1 {[%clk 0:02:26.8]} 16...
Bg6 {[%clk 0:02:57.5]} 17. e3 {[%clk 0:02:25.4]} 17... fxg3 {[%clk 0:02:55.6]}
18. hxg3 {[%clk 0:02:25]} 18... Rf7 {[%clk 0:02:39.6]} 19. e4 {[%clk 0:01:55.9]}
19... dxe4 {[%clk 0:02:38.3]} 20. fxe4 {[%clk 0:01:56.8]} 20... Raf8 {[%clk
0:02:33]} 21. Nf2 {[%clk 0:01:49.8]} 21... Bh5 {[%clk 0:01:56.9]} 22. Qe3 {[%clk
0:01:45]} 22... Bf3 {[%clk 0:01:50.4]} 23. Nh3 {[%clk 0:01:44.6]} 23... Bxg2
{[%clk 0:01:49.7]} 24. Kxg2 {[%clk 0:01:44.8]} 24... h6 {[%clk 0:01:49.6]} 25.
e5 {[%clk 0:01:37.4]} 25... c5 {[%clk 0:01:28.2]} 26. Rxf7 {[%clk 0:01:36.7]}
26... Qxf7 {[%clk 0:01:22.8]} 27. d5 {[%clk 0:01:36.3]} 27... Qf5 {[%clk
0:01:20.3]} 28. Nf2 {[%clk 0:01:27.1]} 28... Nxe5 {[%clk 0:00:57.6]} 29. Qxc5
{[%clk 0:01:09.9]} 29... Qf3+ {[%clk 0:00:53.2]} 30. Kg1 {[%clk 0:01:08.2]}
30... Qxg3+ {[%clk 0:00:52.6]} 31. Kf1 {[%clk 0:01:08.5]} 31... Nd3 {[%clk
0:00:45.9]} 32. Qxf8+ {[%clk 0:01:03.9]} 32... Kxf8 {[%clk 0:00:44.5]} 33. Re3
{[%clk 0:01:03.4]} 0-1

[Event "Late-Titled-Tuesday-Blitz-March-05-2024"]
[Site "Chess.com"]
[Date "2024.03.05"]
[Round "9"]
[White "TheBigBoss04"]
[Black "Szparu"]
[Result "1-0"]
[WhiteElo "2702"]
[BlackElo "2794"]
[TimeControl "180+1"]
[EndTime "15:39:14 PST"]
[Termination "TheBigBoss04 won by checkmate"]

1. e4 {[%clk 0:03:00.9]} 1... c5 {[%clk 0:02:57]} 2. Nc3 {[%clk 0:03:00.7]} 2...
a6 {[%clk 0:02:56.9]} 3. d4 {[%clk 0:02:58.2]} 3... cxd4 {[%clk 0:02:57]} 4.
Qxd4 {[%clk 0:02:59.1]} 4... Nc6 {[%clk 0:02:57.5]} 5. Qd2 {[%clk 0:02:59.1]}
5... Nf6 {[%clk 0:02:57.4]} 6. b3 {[%clk 0:02:56.7]} 6... g6 {[%clk 0:02:57.1]}
7. Bb2 {[%clk 0:02:56.4]} 7... Bg7 {[%clk 0:02:57.7]} 8. O-O-O {[%clk 0:02:56]}
8... O-O {[%clk 0:02:58]} 9. f4 {[%clk 0:02:53.7]} 9... d6 {[%clk 0:02:57.9]}
10. Nf3 {[%clk 0:02:49.8]} 10... Bg4 {[%clk 0:02:57.4]} 11. Bd3 {[%clk
0:02:44.6]} 11... Bxf3 {[%clk 0:02:55.8]} 12. gxf3 {[%clk 0:02:44.3]} 12... e5
{[%clk 0:02:52.7]} 13. Kb1 {[%clk 0:02:35.2]} 13... Nh5 {[%clk 0:02:50.2]} 14.
f5 {[%clk 0:02:25.9]} 14... Nd4 {[%clk 0:02:45]} 15. Qf2 {[%clk 0:02:13.8]}
15... Nf4 {[%clk 0:02:42.6]} 16. h4 {[%clk 0:02:07.5]} 16... h5 {[%clk
0:02:38.9]} 17. Nd5 {[%clk 0:02:03.3]} 17... Nxd5 {[%clk 0:02:38.5]} 18. exd5
{[%clk 0:02:03.2]} 18... Rc8 {[%clk 0:02:31.5]} 19. fxg6 {[%clk 0:01:58]} 19...
fxg6 {[%clk 0:02:31.4]} 20. Bxg6 {[%clk 0:01:57.6]} 20... Rxf3 {[%clk 0:02:30]}
21. Qg2 {[%clk 0:01:57.4]} 21... Qf6 {[%clk 0:02:26.1]} 22. Bxd4 {[%clk
0:01:29.6]} 22... exd4 {[%clk 0:02:21.3]} 23. Bd3 {[%clk 0:01:29.9]} 23... Rf2
{[%clk 0:02:15.1]} 24. Qe4 {[%clk 0:01:23.1]} 24... Kf8 {[%clk 0:02:08.5]} 25.
Rhf1 {[%clk 0:01:19.3]} 25... Rcxc2 {[%clk 0:02:08.1]} 26. Rxf2 {[%clk
0:01:05.1]} 26... Rxf2 {[%clk 0:02:08.1]} 27. Rc1 {[%clk 0:01:05.5]} 27... Qe5
{[%clk 0:01:58]} 28. Rc8+ {[%clk 0:01:02.5]} 28... Ke7 {[%clk 0:01:58]} 29. Qg6
{[%clk 0:00:48.1]} 29... Qe1+ {[%clk 0:01:46.1]} 30. Rc1 {[%clk 0:00:46.6]}
30... Qe5 {[%clk 0:01:43.5]} 31. Rc7+ {[%clk 0:00:44]} 31... Kd8 {[%clk
0:01:43.5]} 32. Qxg7 {[%clk 0:00:41.2]} 32... Qe1+ {[%clk 0:01:26.1]} 33. Rc1
{[%clk 0:00:40.2]} 33... Qd2 {[%clk 0:01:26.7]} 34. Qc7+ {[%clk 0:00:30.7]}
34... Ke8 {[%clk 0:01:26.5]} 35. Qc8+ {[%clk 0:00:26.7]} 35... Ke7 {[%clk
0:01:23.7]} 36. Qe6+ {[%clk 0:00:26.1]} 36... Kf8 {[%clk 0:01:24]} 37. Rc8+
{[%clk 0:00:26.3]} 37... Kg7 {[%clk 0:01:24.5]} 38. Qg6# {[%clk 0:00:27]} 1-0